[Event "Titled Tuesday Blitz July 18 Early 2023"]
[White "Tsaruk, Maksim"]
[Black "SereneSalmon"]
[WhiteFideId "13511173"]
[WhiteElo "2770"]
[BlackElo "2431"]
[Result "1-0"]
[Round "1"]
[TimeControl "180+2"]
[Date "2023.07.18"]
[WhiteClock "0:00:56"]
[BlackClock "0:00:21"]
[Board "66"]

1. e4 {[%clk 0:03:00]}  c5 {[%clk 0:02:59]} 2. Nf3 {[%clk 0:02:59]}  Nc6 {[%clk 0:02:59]} 3. d4 {[%clk 0:03:00]}  cxd4 {[%clk 0:02:59]} 4. Nxd4 {[%clk 0:03:00]}  Nf6 {[%clk 0:03:00]} 5. Nc3 {[%clk 0:02:59]}  d6 {[%clk 0:02:58]} 6. Bg5 {[%clk 0:02:58]}  e6 {[%clk 0:02:59]} 7. Qd2 {[%clk 0:02:57]}  a6 {[%clk 0:02:59]} 8. O-O-O {[%clk 0:02:56]}  Bd7 {[%clk 0:03:00]} 9. f4 {[%clk 0:02:56]}  Be7 {[%clk 0:03:00]} 10. Nf3 {[%clk 0:02:57]}  b5 {[%clk 0:03:00]} 11. Bxf6 {[%clk 0:02:57]}  gxf6 {[%clk 0:03:01]} 12. Kb1 {[%clk 0:02:57]}  b4 {[%clk 0:02:59]} 13. Ne2 {[%clk 0:02:57]}  Qb6 {[%clk 0:02:58]} 14. f5 {[%clk 0:02:57]}  h5 {[%clk 0:02:55]} 15. Nf4 {[%clk 0:02:57]}  O-O-O {[%clk 0:02:41]} 16. Bc4 {[%clk 0:02:56]}  exf5 {[%clk 0:02:21]} 17. Nd5 {[%clk 0:02:46]}  Qa5 {[%clk 0:02:12]} 18. Nxe7+ {[%clk 0:02:44]}  Nxe7 {[%clk 0:02:13]} 19. Qxd6 {[%clk 0:02:44]}  Nc6 {[%clk 0:01:56]} 20. exf5 {[%clk 0:02:35]}  Kb7 {[%clk 0:01:40]} 21. Bd5 {[%clk 0:02:26]}  Qc7 {[%clk 0:01:27]} 22. Qxf6 {[%clk 0:02:24]}  Rhe8 {[%clk 0:01:17]} 23. Qxf7 {[%clk 0:02:00]}  Rf8 {[%clk 0:01:17]} 24. Qxh5 {[%clk 0:01:43]}  Rxf5 {[%clk 0:01:16]} 25. Qh7 {[%clk 0:01:43]}  Rff8 {[%clk 0:00:53]} 26. Rhe1 {[%clk 0:01:25]}  Kb8 {[%clk 0:00:50]} 27. Qd3 {[%clk 0:00:58]}  Bf5 {[%clk 0:00:21]} 28. Qc4 {[%clk 0:00:56]} 1-0


[Site "https://www.chess.com"]

[Event "Titled Tuesday Blitz July 18 Early 2023"]
[White "Mahdavi, Reza"]
[Black "Goldin, Roman"]
[WhiteFideId "12595926"]
[BlackFideId "2803860"]
[WhiteElo "2766"]
[BlackElo "2428"]
[Result "1-0"]
[Round "1"]
[TimeControl "180+2"]
[Date "2023.07.18"]
[WhiteClock "0:00:21"]
[BlackClock "0:00:00"]
[Board "68"]

1. e4 {[%clk 0:02:57]}  Nc6 {[%clk 0:02:59]} 2. d4 {[%clk 0:02:43]}  e5 {[%clk 0:02:59]} 3. d5 {[%clk 0:02:25]}  Nce7 {[%clk 0:02:59]} 4. Be3 {[%clk 0:02:12]}  f5 {[%clk 0:02:47]} 5. f3 {[%clk 0:02:11]}  fxe4 {[%clk 0:02:38]} 6. fxe4 {[%clk 0:02:11]}  Ng6 {[%clk 0:02:30]} 7. Nf3 {[%clk 0:02:08]}  Nf6 {[%clk 0:02:27]} 8. Nbd2 {[%clk 0:02:06]}  Ng4 {[%clk 0:02:15]} 9. Bg1 {[%clk 0:02:01]}  Bb4 {[%clk 0:01:59]} 10. c3 {[%clk 0:02:01]}  Ba5 {[%clk 0:01:58]} 11. Nc4 {[%clk 0:02:00]}  Bb6 {[%clk 0:01:57]} 12. Nxb6 {[%clk 0:02:00]}  axb6 {[%clk 0:01:57]} 13. h3 {[%clk 0:02:01]}  Nf6 {[%clk 0:01:55]} 14. Qc2 {[%clk 0:02:01]}  d6 {[%clk 0:01:53]} 15. a3 {[%clk 0:01:59]}  O-O {[%clk 0:01:52]} 16. O-O-O {[%clk 0:02:00]}  Nh5 {[%clk 0:01:49]} 17. Bf2 {[%clk 0:01:59]}  Bd7 {[%clk 0:01:40]} 18. Rg1 {[%clk 0:01:56]}  Bxh3 {[%clk 0:01:12]} 19. Kb1 {[%clk 0:01:39]}  Bd7 {[%clk 0:01:03]} 20. Be3 {[%clk 0:01:29]}  Ba4 {[%clk 0:00:48]} 21. b3 {[%clk 0:01:26]}  Bd7 {[%clk 0:00:48]} 22. Kb2 {[%clk 0:01:26]}  Bg4 {[%clk 0:00:31]} 23. Be2 {[%clk 0:01:26]}  Ng3 {[%clk 0:00:23]} 24. Bd3 {[%clk 0:01:22]}  Nf4 {[%clk 0:00:20]} 25. Bc4 {[%clk 0:01:20]}  Qd7 {[%clk 0:00:17]} 26. a4 {[%clk 0:01:20]}  h6 {[%clk 0:00:15]} 27. Bf2 {[%clk 0:01:18]}  Ngh5 {[%clk 0:00:14]} 28. Rdf1 {[%clk 0:01:17]}  Nxg2 {[%clk 0:00:13]} 29. Nxe5 {[%clk 0:01:14]}  dxe5 {[%clk 0:00:11]} 30. Rxg2 {[%clk 0:01:15]}  Bh3 {[%clk 0:00:08]} 31. Rfg1 {[%clk 0:01:16]}  Bxg2 {[%clk 0:00:08]} 32. Rxg2 {[%clk 0:01:16]}  Nf4 {[%clk 0:00:08]} 33. Rg1 {[%clk 0:01:17]}  Qd6 {[%clk 0:00:08]} 34. Be3 {[%clk 0:01:16]}  Rf6 {[%clk 0:00:08]} 35. Qh2 {[%clk 0:01:11]}  Raf8 {[%clk 0:00:06]} 36. b4 {[%clk 0:01:11]}  Kh7 {[%clk 0:00:06]} 37. Kb3 {[%clk 0:01:12]}  Rg6 {[%clk 0:00:05]} 38. Rf1 {[%clk 0:01:11]}  Qf6 {[%clk 0:00:05]} 39. Qd2 {[%clk 0:01:05]}  Qg5 {[%clk 0:00:05]} 40. Bb5 {[%clk 0:01:02]}  Qg3 {[%clk 0:00:04]} 41. Bd7 {[%clk 0:00:59]}  Kh8 {[%clk 0:00:03]} 42. Bf5 {[%clk 0:00:58]}  Rg5 {[%clk 0:00:03]} 43. Rxf4 {[%clk 0:00:57]}  exf4 {[%clk 0:00:04]} 44. Bxf4 {[%clk 0:00:58]}  Qf3 {[%clk 0:00:03]} 45. Bxg5 {[%clk 0:00:58]}  hxg5 {[%clk 0:00:03]} 46. Qh2+ {[%clk 0:00:55]}  Kg8 {[%clk 0:00:04]} 47. Be6+ {[%clk 0:00:43]}  Rf7 {[%clk 0:00:04]} 48. Bxf7+ {[%clk 0:00:32]}  Qxf7 {[%clk 0:00:03]} 49. Qg2 {[%clk 0:00:27]}  Qf4 {[%clk 0:00:03]} 50. Qe2 {[%clk 0:00:26]}  g4 {[%clk 0:00:04]} 51. e5 {[%clk 0:00:26]}  g3 {[%clk 0:00:03]} 52. e6 {[%clk 0:00:27]}  Kf8 {[%clk 0:00:03]} 53. Qh5 {[%clk 0:00:22]}  Ke7 {[%clk 0:00:03]} 54. Qg6 {[%clk 0:00:21]}  Qe5 {[%clk 0:00:00]} 55. Qf7+ {[%clk 0:00:21]} 1-0


[Site "https://www.chess.com"]

[Event "Titled Tuesday Blitz July 18 Early 2023"]
[White "Dzhumagaliev, Yan"]
[Black "Federzoni, Enzo"]
[WhiteFideId "24100110"]
[BlackFideId "2173301"]
[WhiteElo "2765"]
[BlackElo "2423"]
[Result "1-0"]
[Round "1"]
[TimeControl "180+2"]
[Date "2023.07.18"]
[WhiteClock "0:00:15"]
[BlackClock "0:00:30"]
[Board "70"]

1. Nf3 {[%clk 0:02:58]}  c5 {[%clk 0:02:58]} 2. h4 {[%clk 0:02:59]}  Nc6 {[%clk 0:02:52]} 3. h5 {[%clk 0:03:00]}  h6 {[%clk 0:02:49]} 4. e4 {[%clk 0:02:59]}  d6 {[%clk 0:02:36]} 5. c3 {[%clk 0:02:58]}  Bg4 {[%clk 0:02:35]} 6. Qb3 {[%clk 0:02:57]}  Qb6 {[%clk 0:02:31]} 7. Qxb6 {[%clk 0:02:47]}  axb6 {[%clk 0:02:30]} 8. Na3 {[%clk 0:02:48]}  Nf6 {[%clk 0:02:26]} 9. Nc4 {[%clk 0:02:32]}  Nxe4 {[%clk 0:02:04]} 10. Nxb6 {[%clk 0:02:30]}  Rd8 {[%clk 0:01:53]} 11. Bb5 {[%clk 0:02:29]}  e6 {[%clk 0:01:42]} 12. Rh4 {[%clk 0:02:25]}  Bxf3 {[%clk 0:01:40]} 13. gxf3 {[%clk 0:02:25]}  Nf6 {[%clk 0:01:41]} 14. Ra4 {[%clk 0:02:15]}  Nd7 {[%clk 0:01:33]} 15. Nxd7 {[%clk 0:02:00]}  Kxd7 {[%clk 0:01:34]} 16. d4 {[%clk 0:01:57]}  cxd4 {[%clk 0:01:31]} 17. cxd4 {[%clk 0:01:51]}  d5 {[%clk 0:01:30]} 18. Be3 {[%clk 0:01:40]}  Bd6 {[%clk 0:01:29]} 19. Kd2 {[%clk 0:01:40]}  Ra8 {[%clk 0:01:27]} 20. Rg1 {[%clk 0:01:37]}  Rxa4 {[%clk 0:01:21]} 21. Bxa4 {[%clk 0:01:38]}  Rg8 {[%clk 0:01:16]} 22. a3 {[%clk 0:01:22]}  Ke7 {[%clk 0:01:15]} 23. Bc2 {[%clk 0:01:06]}  Kf6 {[%clk 0:01:13]} 24. Bxh6 {[%clk 0:01:00]}  g5 {[%clk 0:01:02]} 25. hxg6 {[%clk 0:00:45]}  fxg6 {[%clk 0:01:03]} 26. Bg5+ {[%clk 0:00:41]}  Kf7 {[%clk 0:01:03]} 27. Be3 {[%clk 0:00:38]}  Ne7 {[%clk 0:01:01]} 28. Rh1 {[%clk 0:00:34]}  Nf5 {[%clk 0:00:57]} 29. Rh7+ {[%clk 0:00:33]}  Rg7 {[%clk 0:00:58]} 30. Rxg7+ {[%clk 0:00:33]}  Kxg7 {[%clk 0:00:58]} 31. Bxf5 {[%clk 0:00:29]}  gxf5 {[%clk 0:00:50]} 32. f4 {[%clk 0:00:24]}  Kf6 {[%clk 0:00:49]} 33. Kc3 {[%clk 0:00:24]}  Ke7 {[%clk 0:00:48]} 34. a4 {[%clk 0:00:22]}  Kd7 {[%clk 0:00:48]} 35. b4 {[%clk 0:00:23]}  Kc6 {[%clk 0:00:48]} 36. Kb3 {[%clk 0:00:22]}  Bc7 {[%clk 0:00:48]} 37. Bd2 {[%clk 0:00:21]}  Bd6 {[%clk 0:00:45]} 38. Kc2 {[%clk 0:00:19]}  Kb6 {[%clk 0:00:44]} 39. Kd3 {[%clk 0:00:19]}  Be7 {[%clk 0:00:41]} 40. Ke2 {[%clk 0:00:19]}  Bd6 {[%clk 0:00:41]} 41. Kf3 {[%clk 0:00:20]}  Be7 {[%clk 0:00:41]} 42. Kg3 {[%clk 0:00:20]}  Bf6 {[%clk 0:00:41]} 43. Bc3 {[%clk 0:00:18]}  Kc6 {[%clk 0:00:41]} 44. Kf3 {[%clk 0:00:17]}  Kd6 {[%clk 0:00:41]} 45. Ke3 {[%clk 0:00:18]}  Kc6 {[%clk 0:00:42]} 46. Kf3 {[%clk 0:00:18]}  Kb6 {[%clk 0:00:43]} 47. Ke2 {[%clk 0:00:19]}  Kc6 {[%clk 0:00:43]} 48. Kd3 {[%clk 0:00:19]}  Kb6 {[%clk 0:00:44]} 49. Kc2 {[%clk 0:00:20]}  Be7 {[%clk 0:00:44]} 50. Kb3 {[%clk 0:00:20]}  Bd6 {[%clk 0:00:44]} 51. Bd2 {[%clk 0:00:21]}  Be7 {[%clk 0:00:44]} 52. b5 {[%clk 0:00:17]}  Bf8 {[%clk 0:00:42]} 53. Bb4 {[%clk 0:00:16]}  Bh6 {[%clk 0:00:37]} 54. Bd6 {[%clk 0:00:15]}  Ka5 {[%clk 0:00:33]} 55. Bc7+ {[%clk 0:00:14]}  b6 {[%clk 0:00:30]} 56. Bd6 {[%clk 0:00:15]}  Bf8 {[%clk 0:00:29]} 57. Bxf8 {[%clk 0:00:15]}  e5 {[%clk 0:00:30]} 58. Bb4# {[%clk 0:00:15]} 1-0


[Site "https://www.chess.com"]

[Event "Titled Tuesday Blitz July 18 Early 2023"]
[White "Buchenau, Frank"]
[Black "Nazari, Arad"]
[WhiteFideId "4604350"]
[BlackFideId "12577324"]
[WhiteElo "2421"]
[BlackElo "2763"]
[Result "0-1"]
[Round "1"]
[TimeControl "180+2"]
[Date "2023.07.18"]
[WhiteClock "0:00:24"]
[BlackClock "0:01:04"]
[Board "71"]

1. e4 {[%clk 0:02:59]}  c5 {[%clk 0:02:43]} 2. Nf3 {[%clk 0:02:59]}  d6 {[%clk 0:02:37]} 3. Bb5+ {[%clk 0:02:58]}  Nd7 {[%clk 0:02:37]} 4. O-O {[%clk 0:02:57]}  a6 {[%clk 0:02:36]} 5. Bd3 {[%clk 0:02:57]}  g6 {[%clk 0:02:34]} 6. Re1 {[%clk 0:02:56]}  Bg7 {[%clk 0:02:34]} 7. c3 {[%clk 0:02:55]}  e5 {[%clk 0:02:35]} 8. Bf1 {[%clk 0:02:54]}  Ngf6 {[%clk 0:02:35]} 9. d4 {[%clk 0:02:54]}  O-O {[%clk 0:02:36]} 10. dxe5 {[%clk 0:02:53]}  Nxe5 {[%clk 0:02:36]} 11. Nxe5 {[%clk 0:02:48]}  dxe5 {[%clk 0:02:37]} 12. Qxd8 {[%clk 0:02:39]}  Rxd8 {[%clk 0:02:38]} 13. c4 {[%clk 0:02:37]}  Be6 {[%clk 0:02:16]} 14. Nc3 {[%clk 0:02:37]}  Rac8 {[%clk 0:02:02]} 15. f3 {[%clk 0:02:34]}  Ne8 {[%clk 0:01:48]} 16. Bg5 {[%clk 0:02:31]}  Bf6 {[%clk 0:01:45]} 17. Be3 {[%clk 0:02:31]}  Nd6 {[%clk 0:01:43]} 18. Nd5 {[%clk 0:02:26]}  Bxd5 {[%clk 0:01:41]} 19. cxd5 {[%clk 0:02:22]}  b5 {[%clk 0:01:39]} 20. a4 {[%clk 0:02:16]}  c4 {[%clk 0:01:39]} 21. axb5 {[%clk 0:02:16]}  axb5 {[%clk 0:01:40]} 22. Ra6 {[%clk 0:01:59]}  Be7 {[%clk 0:01:32]} 23. Rea1 {[%clk 0:01:49]}  c3 {[%clk 0:01:24]} 24. Bb6 {[%clk 0:01:36]}  cxb2 {[%clk 0:01:21]} 25. Rb1 {[%clk 0:01:36]}  Rc1 {[%clk 0:01:16]} 26. Rxb2 {[%clk 0:01:33]}  Nc4 {[%clk 0:01:03]} 27. Bxd8 {[%clk 0:01:23]}  Bc5+ {[%clk 0:01:04]} 28. Rf2 {[%clk 0:00:24]}  Nd2 {[%clk 0:01:04]} 0-1


[Site "https://www.chess.com"]

[Event "Titled Tuesday Blitz July 18 Early 2023"]
[White "Zacurdajev, Dmitry"]
[Black "djokovic74"]
[WhiteFideId "4196309"]
[WhiteElo "2419"]
[BlackElo "2758"]
[Result "0-1"]
[Round "1"]
[TimeControl "180+2"]
[Date "2023.07.18"]
[WhiteClock "0:00:10"]
[BlackClock "0:00:33"]
[Board "73"]

1. d4 {[%clk 0:03:00]}  e6 {[%clk 0:03:00]} 2. c4 {[%clk 0:03:00]}  Nf6 {[%clk 0:03:00]} 3. Nc3 {[%clk 0:02:58]}  Bb4 {[%clk 0:03:00]} 4. Qc2 {[%clk 0:02:58]}  b6 {[%clk 0:02:56]} 5. a3 {[%clk 0:02:58]}  Bxc3+ {[%clk 0:02:56]} 6. Qxc3 {[%clk 0:02:59]}  Bb7 {[%clk 0:02:56]} 7. f3 {[%clk 0:02:54]}  d5 {[%clk 0:02:55]} 8. Bg5 {[%clk 0:02:41]}  c6 {[%clk 0:02:43]} 9. e3 {[%clk 0:02:39]}  Nbd7 {[%clk 0:02:41]} 10. Nh3 {[%clk 0:02:38]}  O-O {[%clk 0:02:40]} 11. Be2 {[%clk 0:02:33]}  Rc8 {[%clk 0:02:40]} 12. O-O {[%clk 0:02:27]}  c5 {[%clk 0:02:41]} 13. dxc5 {[%clk 0:02:25]}  bxc5 {[%clk 0:02:35]} 14. cxd5 {[%clk 0:02:18]}  Nxd5 {[%clk 0:02:26]} 15. Qc2 {[%clk 0:02:03]}  Qc7 {[%clk 0:02:22]} 16. e4 {[%clk 0:02:00]}  N5b6 {[%clk 0:02:20]} 17. Bf4 {[%clk 0:01:58]}  e5 {[%clk 0:02:20]} 18. Be3 {[%clk 0:01:56]}  Rfd8 {[%clk 0:02:11]} 19. a4 {[%clk 0:01:47]}  a5 {[%clk 0:02:04]} 20. Qc3 {[%clk 0:01:38]}  Ra8 {[%clk 0:01:50]} 21. b3 {[%clk 0:01:32]}  Rdc8 {[%clk 0:01:48]} 22. Rac1 {[%clk 0:01:32]}  h6 {[%clk 0:01:41]} 23. Rfd1 {[%clk 0:01:30]}  Ba6 {[%clk 0:01:37]} 24. Bxa6 {[%clk 0:01:28]}  Rxa6 {[%clk 0:01:38]} 25. Nf2 {[%clk 0:01:26]}  Na8 {[%clk 0:01:26]} 26. Nd3 {[%clk 0:01:18]}  Rc6 {[%clk 0:01:23]} 27. Nb2 {[%clk 0:01:16]}  Rb8 {[%clk 0:01:15]} 28. Nc4 {[%clk 0:01:14]}  Ra6 {[%clk 0:01:16]} 29. Rd5 {[%clk 0:01:08]}  Nab6 {[%clk 0:01:11]} 30. Nxb6 {[%clk 0:00:55]}  Raxb6 {[%clk 0:01:11]} 31. Qxa5 {[%clk 0:00:53]}  Qb7 {[%clk 0:01:11]} 32. Bxc5 {[%clk 0:00:51]}  Rxb3 {[%clk 0:01:08]} 33. Bf2 {[%clk 0:00:43]}  Nf6 {[%clk 0:01:01]} 34. Rxe5 {[%clk 0:00:29]}  Rb2 {[%clk 0:01:00]} 35. Rb5 {[%clk 0:00:24]}  Rxb5 {[%clk 0:00:59]} 36. axb5 {[%clk 0:00:25]}  Qxb5 {[%clk 0:00:59]} 37. Rc8+ {[%clk 0:00:25]}  Kh7 {[%clk 0:00:59]} 38. Qxb5 {[%clk 0:00:22]}  Rxb5 {[%clk 0:01:00]} 39. h3 {[%clk 0:00:22]}  Kg6 {[%clk 0:00:57]} 40. Rc7 {[%clk 0:00:23]}  h5 {[%clk 0:00:55]} 41. g4 {[%clk 0:00:22]}  hxg4 {[%clk 0:00:55]} 42. hxg4 {[%clk 0:00:23]}  Ne8 {[%clk 0:00:49]} 43. Rc6+ {[%clk 0:00:21]}  f6 {[%clk 0:00:49]} 44. Kg2 {[%clk 0:00:21]}  Rb2 {[%clk 0:00:45]} 45. f4 {[%clk 0:00:21]}  Kf7 {[%clk 0:00:42]} 46. Kf3 {[%clk 0:00:20]}  Ke7 {[%clk 0:00:40]} 47. g5 {[%clk 0:00:20]}  fxg5 {[%clk 0:00:38]} 48. fxg5 {[%clk 0:00:21]}  Kd7 {[%clk 0:00:38]} 49. Rg6 {[%clk 0:00:20]}  Ke7 {[%clk 0:00:38]} 50. Bd4 {[%clk 0:00:20]}  Rb3+ {[%clk 0:00:38]} 51. Kf4 {[%clk 0:00:21]}  Kf7 {[%clk 0:00:38]} 52. Rc6 {[%clk 0:00:21]}  Rb7 {[%clk 0:00:35]} 53. g6+ {[%clk 0:00:22]}  Ke7 {[%clk 0:00:33]} 54. Bc5+ {[%clk 0:00:20]}  Kd7 {[%clk 0:00:33]} 55. Ra6 {[%clk 0:00:20]}  Nc7 {[%clk 0:00:33]} 56. Ra2 {[%clk 0:00:13]}  Ne6+ {[%clk 0:00:33]} 57. Ke5 {[%clk 0:00:13]}  Nxc5 {[%clk 0:00:33]} 58. Rf2 {[%clk 0:00:14]}  Nd3+ {[%clk 0:00:32]} 59. Kd4 {[%clk 0:00:10]}  Nxf2 {[%clk 0:00:33]} 0-1


[Site "https://www.chess.com"]

[Event "Titled Tuesday Blitz July 18 Early 2023"]
[White "Skuhala, Barbara"]
[Black "Karthikeyan Pandiyan"]
[WhiteFideId "14605465"]
[BlackFideId "45084963"]
[WhiteElo "2418"]
[BlackElo "2755"]
[Result "1-0"]
[Round "1"]
[TimeControl "180+2"]
[Date "2023.07.18"]
[WhiteClock "0:00:22"]
[BlackClock "0:00:00"]
[Board "75"]

1. e4 {[%clk 0:02:59]}  c5 {[%clk 0:03:00]} 2. Nf3 {[%clk 0:02:59]}  Nc6 {[%clk 0:03:00]} 3. d4 {[%clk 0:02:59]}  cxd4 {[%clk 0:03:01]} 4. Nxd4 {[%clk 0:02:59]}  Nf6 {[%clk 0:03:01]} 5. Nc3 {[%clk 0:02:57]}  d6 {[%clk 0:03:01]} 6. Bg5 {[%clk 0:02:56]}  Bd7 {[%clk 0:02:59]} 7. Qd2 {[%clk 0:02:55]}  Rc8 {[%clk 0:02:59]} 8. O-O-O {[%clk 0:02:56]}  Nxd4 {[%clk 0:02:57]} 9. Qxd4 {[%clk 0:02:55]}  Qa5 {[%clk 0:02:57]} 10. Bxf6 {[%clk 0:02:54]}  gxf6 {[%clk 0:02:57]} 11. Kb1 {[%clk 0:02:54]}  e6 {[%clk 0:02:53]} 12. f4 {[%clk 0:02:51]}  Be7 {[%clk 0:02:49]} 13. g4 {[%clk 0:02:50]}  Rg8 {[%clk 0:02:46]} 14. Be2 {[%clk 0:02:50]}  Qc5 {[%clk 0:02:44]} 15. Qd2 {[%clk 0:02:47]}  b5 {[%clk 0:02:43]} 16. Bf3 {[%clk 0:02:43]}  a5 {[%clk 0:02:35]} 17. Rhe1 {[%clk 0:02:41]}  b4 {[%clk 0:02:31]} 18. Ne2 {[%clk 0:02:41]}  a4 {[%clk 0:02:27]} 19. Nd4 {[%clk 0:02:25]}  a3 {[%clk 0:02:25]} 20. b3 {[%clk 0:02:24]}  Bd8 {[%clk 0:02:14]} 21. e5 {[%clk 0:02:17]}  fxe5 {[%clk 0:02:12]} 22. fxe5 {[%clk 0:02:18]}  Bg5 {[%clk 0:02:09]} 23. Qd3 {[%clk 0:02:17]}  dxe5 {[%clk 0:01:50]} 24. Nf5 {[%clk 0:02:06]}  Rc7 {[%clk 0:01:46]} 25. Nd6+ {[%clk 0:02:05]}  Ke7 {[%clk 0:01:43]} 26. Nc4 {[%clk 0:02:04]}  f6 {[%clk 0:01:38]} 27. Qxh7+ {[%clk 0:02:03]}  Kf8 {[%clk 0:01:31]} 28. Rxd7 {[%clk 0:02:02]}  Rxd7 {[%clk 0:01:22]} 29. Qxd7 {[%clk 0:02:02]}  Qf2 {[%clk 0:01:21]} 30. Qd1 {[%clk 0:01:55]}  Kg7 {[%clk 0:01:09]} 31. Be4 {[%clk 0:01:52]}  Rd8 {[%clk 0:01:07]} 32. Bd3 {[%clk 0:01:46]}  Qd4 {[%clk 0:01:07]} 33. Qf3 {[%clk 0:01:30]}  Qc3 {[%clk 0:00:47]} 34. Rf1 {[%clk 0:01:26]}  Rd7 {[%clk 0:00:34]} 35. Qe4 {[%clk 0:01:03]}  Kf8 {[%clk 0:00:19]} 36. Qxe5 {[%clk 0:00:47]}  Rxd3 {[%clk 0:00:15]} 37. Qxe6 {[%clk 0:00:31]}  Rf3 {[%clk 0:00:08]} 38. Rd1 {[%clk 0:00:29]}  Qd4 {[%clk 0:00:02]} 39. Re1 {[%clk 0:00:26]}  Kg7 {[%clk 0:00:02]} 40. Qe7+ {[%clk 0:00:26]}  Kg6 {[%clk 0:00:01]} 41. Qe8+ {[%clk 0:00:26]}  Kh6 {[%clk 0:00:01]} 42. Qh5+ {[%clk 0:00:22]}  Kg7 {[%clk 0:00:01]} 43. Re7+ {[%clk 0:00:22]}  Kg8 {[%clk 0:00:00]} 44. Qf7+ {[%clk 0:00:22]} 1-0


[Site "https://www.chess.com"]

[Event "Titled Tuesday Blitz July 18 Early 2023"]
[White "Skvortsov, Andrei"]
[Black "luksona14"]
[WhiteFideId "24108600"]
[WhiteElo "2754"]
[BlackElo "2418"]
[Result "1-0"]
[Round "1"]
[TimeControl "180+2"]
[Date "2023.07.18"]
[WhiteClock "0:01:41"]
[BlackClock "0:01:33"]
[Board "76"]

1. e4 {[%clk 0:02:59]}  c5 {[%clk 0:02:59]} 2. d4 {[%clk 0:02:59]}  cxd4 {[%clk 0:02:59]} 3. Qxd4 {[%clk 0:03:00]}  Nc6 {[%clk 0:02:59]} 4. Qd3 {[%clk 0:03:01]}  g6 {[%clk 0:02:59]} 5. Nc3 {[%clk 0:03:01]}  Bg7 {[%clk 0:02:59]} 6. Nf3 {[%clk 0:03:02]}  d6 {[%clk 0:03:00]} 7. Be2 {[%clk 0:03:02]}  Nf6 {[%clk 0:03:00]} 8. O-O {[%clk 0:03:03]}  O-O {[%clk 0:03:01]} 9. Nd5 {[%clk 0:03:03]}  Bg4 {[%clk 0:02:59]} 10. c3 {[%clk 0:03:03]}  Bxf3 {[%clk 0:02:57]} 11. Qxf3 {[%clk 0:03:02]}  Ne5 {[%clk 0:02:57]} 12. Qe3 {[%clk 0:02:55]}  Nxd5 {[%clk 0:02:56]} 13. exd5 {[%clk 0:02:55]}  Qc7 {[%clk 0:02:54]} 14. a4 {[%clk 0:02:55]}  Bf6 {[%clk 0:02:52]} 15. Qe4 {[%clk 0:02:51]}  Rac8 {[%clk 0:02:50]} 16. Qb4 {[%clk 0:02:46]}  b6 {[%clk 0:02:45]} 17. a5 {[%clk 0:02:45]}  bxa5 {[%clk 0:02:43]} 18. Qxa5 {[%clk 0:02:45]}  Qxa5 {[%clk 0:02:41]} 19. Rxa5 {[%clk 0:02:46]}  Rc7 {[%clk 0:02:42]} 20. Be3 {[%clk 0:02:46]}  Rb8 {[%clk 0:02:40]} 21. Ra2 {[%clk 0:02:44]}  Rcb7 {[%clk 0:02:39]} 22. b4 {[%clk 0:02:39]}  Nd7 {[%clk 0:02:40]} 23. Bd2 {[%clk 0:02:32]}  Rc8 {[%clk 0:02:31]} 24. Ba6 {[%clk 0:02:28]}  Rcc7 {[%clk 0:02:31]} 25. Bxb7 {[%clk 0:02:28]}  Rxb7 {[%clk 0:02:31]} 26. Be3 {[%clk 0:02:11]}  Bxc3 {[%clk 0:02:28]} 27. Rxa7 {[%clk 0:02:10]}  Rxa7 {[%clk 0:02:29]} 28. Bxa7 {[%clk 0:02:11]}  Bxb4 {[%clk 0:02:29]} 29. Rb1 {[%clk 0:02:11]}  Ba3 {[%clk 0:02:12]} 30. Rb7 {[%clk 0:02:08]}  Nf6 {[%clk 0:02:12]} 31. Bd4 {[%clk 0:02:08]}  Kf8 {[%clk 0:02:08]} 32. Bxf6 {[%clk 0:02:06]}  exf6 {[%clk 0:02:08]} 33. g4 {[%clk 0:02:03]}  Bc5 {[%clk 0:02:07]} 34. Kg2 {[%clk 0:02:03]}  Kg7 {[%clk 0:02:07]} 35. f3 {[%clk 0:02:03]}  f5 {[%clk 0:02:07]} 36. gxf5 {[%clk 0:02:03]}  gxf5 {[%clk 0:02:08]} 37. Kg3 {[%clk 0:01:59]}  Kf6 {[%clk 0:02:08]} 38. Rb8 {[%clk 0:01:59]}  Bd4 {[%clk 0:02:05]} 39. f4 {[%clk 0:01:58]}  Bc5 {[%clk 0:02:05]} 40. Ra8 {[%clk 0:01:55]}  Bb4 {[%clk 0:02:05]} 41. Kh4 {[%clk 0:01:54]}  Be1+ {[%clk 0:02:02]} 42. Kh5 {[%clk 0:01:53]}  Bd2 {[%clk 0:02:00]} 43. Ra4 {[%clk 0:01:52]}  Kg7 {[%clk 0:01:53]} 44. Kg5 {[%clk 0:01:52]}  Be3 {[%clk 0:01:53]} 45. Kxf5 {[%clk 0:01:53]}  Bg1 {[%clk 0:01:53]} 46. Ra6 {[%clk 0:01:49]}  Bc5 {[%clk 0:01:53]} 47. Rc6 {[%clk 0:01:49]}  Bb4 {[%clk 0:01:50]} 48. Rc2 {[%clk 0:01:46]}  Ba3 {[%clk 0:01:50]} 49. Rg2+ {[%clk 0:01:46]}  Kf8 {[%clk 0:01:50]} 50. Kg5 {[%clk 0:01:46]}  Bc1 {[%clk 0:01:46]} 51. Rg4 {[%clk 0:01:45]}  Kg7 {[%clk 0:01:42]} 52. Kf5+ {[%clk 0:01:44]}  Kf8 {[%clk 0:01:42]} 53. Ke4 {[%clk 0:01:44]}  Bb2 {[%clk 0:01:40]} 54. Kd3 {[%clk 0:01:43]}  Ke7 {[%clk 0:01:41]} 55. Rh4 {[%clk 0:01:42]}  Bc1 {[%clk 0:01:33]} 56. Ke4 {[%clk 0:01:41]} 1-0


[Site "https://www.chess.com"]

[Event "Titled Tuesday Blitz July 18 Early 2023"]
[White "Krzywda, Andrzej"]
[Black "Sokolovsky, Yahli"]
[WhiteFideId "1114565"]
[BlackFideId "2820242"]
[WhiteElo "2416"]
[BlackElo "2749"]
[Result "0-1"]
[Round "1"]
[TimeControl "180+2"]
[Date "2023.07.18"]
[WhiteClock "0:00:00"]
[BlackClock "0:00:07"]
[Board "79"]

1. e4 {[%clk 0:03:00]}  d6 {[%clk 0:02:57]} 2. d4 {[%clk 0:02:59]}  Nf6 {[%clk 0:02:58]} 3. Nc3 {[%clk 0:02:58]}  g6 {[%clk 0:02:59]} 4. Be3 {[%clk 0:02:58]}  Bg7 {[%clk 0:02:59]} 5. Qd2 {[%clk 0:02:58]}  a6 {[%clk 0:02:54]} 6. O-O-O {[%clk 0:02:48]}  b5 {[%clk 0:02:51]} 7. f3 {[%clk 0:02:36]}  Bb7 {[%clk 0:02:50]} 8. h4 {[%clk 0:02:27]}  h5 {[%clk 0:02:49]} 9. Nh3 {[%clk 0:02:27]}  Nbd7 {[%clk 0:02:42]} 10. Ng5 {[%clk 0:02:25]}  Rc8 {[%clk 0:02:41]} 11. Kb1 {[%clk 0:02:12]}  O-O {[%clk 0:02:41]} 12. g3 {[%clk 0:01:56]}  c5 {[%clk 0:02:42]} 13. dxc5 {[%clk 0:01:45]}  Nxc5 {[%clk 0:02:29]} 14. Bh3 {[%clk 0:01:38]}  b4 {[%clk 0:02:02]} 15. Nd5 {[%clk 0:01:32]}  Nxd5 {[%clk 0:01:57]} 16. exd5 {[%clk 0:01:33]}  Rb8 {[%clk 0:01:57]} 17. Bd4 {[%clk 0:01:29]}  Bh6 {[%clk 0:01:36]} 18. Be3 {[%clk 0:01:10]}  Na4 {[%clk 0:01:27]} 19. g4 {[%clk 0:01:01]}  Qa5 {[%clk 0:01:23]} 20. Bd4 {[%clk 0:00:46]}  Bxd5 {[%clk 0:01:19]} 21. b3 {[%clk 0:00:30]}  Nc3+ {[%clk 0:01:20]} 22. Bxc3 {[%clk 0:00:30]}  bxc3 {[%clk 0:01:21]} 23. Qc1 {[%clk 0:00:23]}  Bxg5 {[%clk 0:01:05]} 24. hxg5 {[%clk 0:00:22]}  Bxf3 {[%clk 0:01:05]} 25. gxh5 {[%clk 0:00:20]}  Bxh5 {[%clk 0:01:02]} 26. Rde1 {[%clk 0:00:16]}  e6 {[%clk 0:00:54]} 27. Bf1 {[%clk 0:00:15]}  Rb4 {[%clk 0:00:49]} 28. Bd3 {[%clk 0:00:15]}  Rfb8 {[%clk 0:00:39]} 29. Rxh5 {[%clk 0:00:14]}  gxh5 {[%clk 0:00:38]} 30. g6 {[%clk 0:00:15]}  Kg7 {[%clk 0:00:25]} 31. gxf7 {[%clk 0:00:12]}  Rg4 {[%clk 0:00:19]} 32. Rf1 {[%clk 0:00:05]}  Rf8 {[%clk 0:00:18]} 33. Qe1 {[%clk 0:00:04]}  Qe5 {[%clk 0:00:14]} 34. Qf2 {[%clk 0:00:02]}  h4 {[%clk 0:00:13]} 35. a4 {[%clk 0:00:03]}  h3 {[%clk 0:00:12]} 36. Qf3 {[%clk 0:00:03]}  Rg3 {[%clk 0:00:09]} 37. Qh1 {[%clk 0:00:01]}  Qc5 {[%clk 0:00:07]} 38. Re1 {[%clk 0:00:00]}  Qa3 {[%clk 0:00:07]} 0-1


[Site "https://www.chess.com"]